lending/lending_fUSD_20250121
["ID","MTS","AMOUNT","RATE_DAILY","PERIOD"]
[349913765,1737498646213,-583.82323675,0.00021746,2]
[349913766,1737498646224,-500.0,0.00021746,2]
[349913768,1737498646235,-659.38,0.00021746,2]
[349913770,1737498646246,-500.0,0.00021746,2]
[349913772,1737498646256,-500.0,0.00021746,2]
[349913775,1737498646267,-556.66,0.00021746,2]
[349913777,1737498646277,-878.87,0.00021746,2]
[349913778,1737498646288,-500.0,0.00021746,2]
[349913779,1737498646298,-1381.24,0.00021746,2]
[349913780,1737498646309,-500.0,0.00021746,2]
[349913781,1737498646320,-500.0,0.00021746,2]
[349913782,1737498646331,-2275.5,0.00021746,2]
[349913783,1737498646342,-500.0,0.00021746,2]
[349913785,1737498646353,-500.0,0.00021746,2]
[349913787,1737498646364,-500.0,0.00021746,2]
[349913788,1737498646375,-726.94,0.00021746,2]
[349913789,1737498646385,-612.24,0.00021746,2]
[349913790,1737498646396,-500.0,0.00021746,2]
[349913791,1737498646407,-493.41479727,0.00021746,2]
[349913792,1737498646422,-6.58520273,0.00021746,2]
[349913794,1737498646431,-500.0,0.00021746,2]
[349913796,1737498646440,-500.0,0.00021746,2]
[349913798,1737498646449,-500.0,0.00021746,2]
[349913800,1737498646458,-415.242156,0.00021746,2]
[349913802,1737498646466,-500.0,0.00021746,2]
[349913803,1737498646475,-921.07,0.00021746,2]
[349913805,1737498646484,-197.45114147,0.00021746,2]
[349913806,1737498646519,-217.79101453,0.00021746,2]
[349913807,1737498646529,-500.0,0.00021746,2]
[349913808,1737498646538,-2689.65,0.00021746,2]
[349913809,1737498646547,-587.65,0.00021746,2]
[349913810,1737498646556,-972.89,0.00021746,2]
[349913811,1737498646566,-711.38,0.00021746,2]
[349913812,1737498646574,-500.0,0.00021746,2]
[349913813,1737498646583,-500.0,0.00021746,2]
[349913814,1737498646592,-500.0,0.00021746,2]
[349913815,1737498646601,-685.29,0.00021746,2]
[349913816,1737498646610,-500.0,0.00021746,2]
[349913817,1737498646619,-500.0,0.00021746,2]
[349913818,1737498646628,-1514.04,0.00021746,2]
[349913819,1737498646637,-3020.43,0.00021746,2]
[349913820,1737498646646,-500.0,0.00021746,2]
[349913821,1737498646655,-500.0,0.00021746,2]
[349913822,1737498646665,-715.76,0.00021746,2]
[349913823,1737498646675,-413.10127798,0.00021747,2]
[349913824,1737498646685,-500.0,0.00021747,2]
[349913825,1737498646695,-500.0,0.00021747,2]
[349913826,1737498646705,-500.0,0.00021747,2]
[349913827,1737498646714,-500.0,0.00021747,2]
[349913828,1737498646723,-500.0,0.00021747,2]
[349913829,1737498646732,-511.49905464,0.00021747,2]
[349913830,1737498646742,-595.81257282,0.00021747,2]
[349913831,1737498646751,-500.0,0.00021747,2]
[349913832,1737498646762,-355.83945099,0.00021749,2]
[349913833,1737498646771,-12730.02638005,0.00021749,2]
[349913834,1737498646783,-664.68609994,0.00021749,2]
[349913835,1737498646794,-293.05207303,0.00021749,2]
[349913836,1737498646804,-24.53792697,0.0002175,4]
[349913837,1737498646815,-125.46207303,0.0002175,4]
[349913838,1737498646825,-150.0,0.0002175,4]
[349913839,1737498646835,-129.51712697,0.00021756,2]
[349913840,1737498646847,-450.01148013,0.00021756,2]
[349913841,1737498646858,-1603.75,0.00021756,2]
[349913842,1737498646882,-2361.21758726,0.00021756,2]
[349913843,1737498647186,-3798.5085625,0.00021756,2]
[349913844,1737498647205,-198.68421583,0.00021758,2]
[349913845,1737498647223,-1004.60556839,0.0002176,2]
[349913846,1737498647234,-355.83945099,0.00021764,2]
[349913847,1737498647244,-413.10127798,0.00021764,2]
[349913848,1737498647254,-266.21285614,0.00021768,2]
[349913849,1737498647264,-20000.0,0.00021768,2]
[349913850,1737498647274,-355.83945099,0.0002177,2]
[349913851,1737498647283,-500.0,0.00021773,2]
[349913852,1737498647292,-150.0,0.00021773,2]
[349913853,1737498647302,-200.0,0.00021775,2]
[349913854,1737498647313,-420.0,0.00021777,2]
[349913855,1737498647323,-266.21285614,0.00021782,2]
[349913856,1737498647332,-9347.8812508,0.00021785,2]
[349913857,1737498647342,-10616.8388611,0.00021785,2]
[349913858,1737498647352,-3437.0988585,0.00021785,2]
[349913859,1737498647362,-3732.7848632,0.00021785,2]
[349913860,1737498647372,-413.10127798,0.00021794,2]
[349913861,1737498647382,-355.83945099,0.00021795,2]
[349913862,1737498647392,-8343.00475686,0.00021796,2]
[349913863,1737498647401,-999.0,0.00021799,2]
[349913864,1737498647411,-8541.15093914,0.000218,2]
[349913865,1737498647420,-3019.49507082,0.000218,2]
[349913866,1737498647430,-423269.51161829,0.000218,2]
[349913867,1737498647446,-7446.21154971,0.000218,2]
[349913868,1737498647457,-1300.00000003,0.000218,2]
[349913869,1737498647471,-13224.22327818,0.000218,2]
[349913872,1737498853331,150.0,0.00024,120]
[349913873,1737498858707,255.68367079,0.00024,120]
[349913874,1737498870825,150.0,0.00023921,120]
[349913875,1737498882939,1083.56247586,0.00020273,120]
[349913876,1737498903114,193.77423308,0.00024,120]
[349913877,1737498903169,1800.0,0.00024,120]
[349913878,1737498903201,488.0,0.00024,120]
[349913879,1737498903484,1092.67649175,0.00024,120]
[349913880,1737498903516,5613.88141483,0.00024,120]
[349913881,1737498913361,10000.0,0.00024,120]
[349913882,1737498918532,150.0,0.00024,120]
[349913883,1737498927562,10000.0,0.00024,120]
[349913884,1737498945387,3985.0,0.00024,120]
[349913885,1737498987407,2500.0,0.00021197,120]
[349913886,1737498987697,2500.0,0.00021471,120]
[349913887,1737498987955,2500.0,0.00021745,120]
[349913888,1737498988206,168.52098543,0.00022019,120]
[349913889,1737499044231,150.0,0.00024,120]
[349913890,1737499050708,150.0,0.00022533,120]
[349913892,1737499221659,150.012207,0.00024,120]
[349913893,1737499223075,150.012207,0.00024,120]
[349913894,1737499223757,150.012207,0.00024,120]
[349913895,1737499224369,150.012207,0.00024,120]
[349913896,1737499224841,150.012207,0.00024,120]
[349913897,1737499225629,150.012207,0.00024,120]
[349913898,1737499236842,150.012207,0.00024,120]
[349913899,1737499390904,349.121054,0.0002209,120]
[349913900,1737499393024,2000.0,0.0002209,120]
[349913901,1737499393397,2000.0,0.00023999,120]
[349913902,1737499403168,202.446584,0.0002209,120]
[349913912,1737499760159,-550.0,0.00015,2]
[349913913,1737499760181,-1018.79195448,0.00015536,2]
[349913914,1737499760202,-165.43,0.00015636,2]
[349913915,1737499760223,-596.42335552,0.00016338,2]
[349913917,1737499832215,-187.28498123,0.00015536,2]
[349913918,1737499832224,-120.44367741,0.00016438,2]
[349913919,1737499832339,-29.55632259,0.00016438,2]
[349913920,1737499832352,-1660.69381337,0.00016612,2]
[349913921,1737499832360,-167.07,0.00016712,2]
[349913922,1737499832370,-150.0,0.00016959,2]
[349913923,1737499832378,-600.0,0.00017,2]
[349913924,1737499832387,-1526.97679612,0.00017,2]
[349913925,1737499832550,-20691.50147877,0.00017,2]
[349913966,1737499838166,-1762.30639027,0.00017,2]
[349913967,1737499838305,-2116.34708069,0.00017,2]
[349913994,1737499840170,-85.76096387,0.00017,2]
[349913996,1737499840181,-250.0,0.00017123,2]
[349913998,1737499840191,-634.89,0.00017486,2]
[349914000,1737499840200,-905.49875613,0.000177,2]
[349914023,1737499840554,-1457.50124387,0.000177,2]
[349914024,1737499840564,-350.0,0.00017808,2]
[349914025,1737499840574,-187.28498121,0.00017856,2]
[349914026,1737499840584,-17287.15250557,0.00018353,2]
[349914028,1737499840710,-6612.84749443,0.00018353,2]
[349914029,1737499840720,-546.62,0.00018408,2]
[349914031,1737499840729,-210.73242179,0.00018493,2]
[349914032,1737499840738,-2078.09,0.00018526,2]
[349914033,1737499840747,-500.0,0.00018849,2]
[349914034,1737499840756,-2751.0,0.00018859,2]
[349914035,1737499840765,-387.41008377,0.0001892,2]
[349914036,1737499840776,-481.85991623,0.0001892,2]
[349914037,1737499840785,-533.25926135,0.00018937,2]
[349914038,1737499840794,-186.26,0.00018949,2]
[349914039,1737499840804,-572.14,0.00018998,2]
[349914040,1737499840813,-450.16512854,0.00019,2]
[349914059,1737499845033,-199.83487146,0.00019,2]
[349914060,1737499845043,-156.74,0.00019037,30]
[349914061,1737499845053,-500.0,0.00019164,2]
[349914062,1737499845063,-350.9297985,0.00019164,2]
[349914065,1737499845084,-149.0702015,0.00019164,2]
[349914066,1737499845094,-522.195,0.00019164,2]
[349914067,1737499845103,-250.0,0.00019363,2]
[349914068,1737499845113,-2520.42,0.00019491,2]
[349914069,1737499845122,-634.89,0.0001975,2]
[349914070,1737499845131,-1000.0,0.00019893,2]
[349914071,1737499845140,-211.06978961,0.000199,2]
[349914072,1737499845149,-166.28,0.00019903,2]
[349914073,1737499845158,-150.0,0.00019919,2]
[349914074,1737499845168,-6868.79139367,0.00020089,2]
[349914075,1737499845180,-5323.47275,0.00020089,2]
[349914076,1737499845191,-445.52585633,0.00020089,2]
[349914077,1737499845200,-187.28498121,0.00020176,2]
[349914078,1737499845209,-182.43,0.00020276,2]
[349914079,1737499845219,-409.75916231,0.00020276,2]
[349914080,1737499845402,-649.30083769,0.00020276,2]
[349914081,1737499845412,-211.06978958,0.000204,2]
[349914082,1737499845423,-298.31002229,0.00020783,2]
[349914083,1737499845434,-406.75962615,0.00020789,2]
[349914084,1737499845443,-1612.54295691,0.000208,2]
[349914089,1737499845962,-426.32664309,0.000208,2]
[349914090,1737499845972,-2500.0,0.000208,2]
[349914091,1737499845981,-406.75962615,0.00020804,2]
[349914092,1737499845991,-590.17846277,0.00020807,2]
[349914093,1737499846000,-3268.52743238,0.00020817,2]
[349914094,1737499846009,-406.75962615,0.00020819,2]
[349914095,1737499846019,-112.50474785,0.00020832,2]
[349914096,1737499846289,-294.2548783,0.00020832,2]
[349914097,1737499846299,-89.9084117,0.00020833,2]
[349914098,1737499846322,-8103.54423,0.00020833,2]
[349914099,1737499846333,-847.24993437,0.00020833,2]
[349914100,1737499846345,-334.10377,0.00020833,2]
[349914101,1737499846361,-3775.19365393,0.00020833,2]
[349914102,1737499846370,-298.31002229,0.00020843,2]
[349914103,1737499846380,-590.17846277,0.00020846,2]
[349914105,1737499846391,-590.17846277,0.00020861,2]
[349914107,1737499846400,-3268.52743238,0.00020862,2]
[349914109,1737499846410,-406.75962615,0.00020865,2]
[349914111,1737499846419,-298.31002229,0.00020868,2]
[349914113,1737499846432,-590.17846277,0.00020876,2]
[349914115,1737499846442,-298.31002229,0.0002088,2]
[349914117,1737499846451,-200.0,0.00020883,2]
[349914119,1737499846461,-2530.31383236,0.00020885,2]
[349914121,1737499846474,-252.02947703,0.00020885,2]
[349914123,1737499846485,-486.18412299,0.00020885,2]
[349914125,1737499846494,-167.61,0.0002089,2]
[349914127,1737499846504,-215.06014461,0.00020893,2]
[349914139,1737499933150,283.04,0.00010137,2]
[349914140,1737499951886,838.98919435,0.00014781,7]
[349914141,1737499994114,2000.0,0.0002209,120]
[349914142,1737499994471,2000.0,0.00023999,120]
[349914143,1737500333212,151.0,0.00024,120]
[349914144,1737500593112,2000.0,0.0002234,120]
[349914145,1737500593470,2000.0,0.00023999,120]
[349914147,1737500812251,152.38,0.00010137,2]
[349914148,1737500819104,-163.63,0.00012329,2]
[349914149,1737500819126,-550.0,0.00015,2]
[349914150,1737500819147,-600.0,0.00017,2]
[349914151,1737500819378,-159.9756587,0.000171,2]
[349914152,1737500819403,-152.38,0.00017184,2]
[349914153,1737500819425,-941.70698897,0.000172,2]
[349914167,1737501032243,-500.0,0.000172,2]
[349914168,1737501032253,-493.18291461,0.000172,2]
[349914169,1737501032263,-149.34878456,0.000172,2]
[349914170,1737501032274,-1351.99052351,0.000172,2]
[349914171,1737501032286,-1007.66069193,0.000172,2]
[349914172,1737501032295,-142.33930777,0.00017648,2]
[349914173,1737501032306,-460.47069223,0.00017648,2]
[349914174,1737501032316,-206.3169647,0.00018,2]
[349914175,1737501032326,-393.19887639,0.000186,2]
[349914176,1737501032423,-738.28,0.000186,2]
[349914177,1737501032435,-295.24634649,0.000186,2]
[349914178,1737501032447,-289.4164,0.000186,2]
[349914179,1737501032581,-2650.25,0.000186,2]
[349914202,1737501038238,-2780.60837712,0.000186,2]
[349914203,1737501038247,-650.0,0.00019,2]
[349914204,1737501038257,-1569.39162288,0.00019,3]
[349914205,1737501038268,-2070.17601504,0.00019,3]
[349914206,1737501038345,-1918.43236208,0.00019,3]
[349914207,1737501038354,-533.25926135,0.00019325,2]
[349914208,1737501038364,-250.0,0.00019347,2]
[349914209,1737501038375,-201.58,0.00019376,2]
[349914210,1737501038384,-17496.72837657,0.00019396,2]
[349914211,1737501038396,-303.49571,0.00019396,2]
[349914212,1737501038408,-464.46045226,0.00019396,2]
[349914213,1737501038424,-2591.19546117,0.00019396,2]
[349914214,1737501038434,-5558.0,0.000194,5]
[349914215,1737501038443,-434.63,0.00019407,2]
[349914216,1737501038452,-346.91042057,0.00019424,2]
[349914217,1737501038462,-1351.99,0.00019425,2]
[349914218,1737501038472,-184.65,0.00019734,2]
[349914219,1737501038482,-1000.0,0.00019802,2]
[349914220,1737501038493,-807.6288,0.000199,2]
[349914221,1737501038502,-211.06978958,0.000199,2]
[349914222,1737501038512,-602.81,0.00019911,2]
[349914223,1737501038522,-184.6,0.00019946,2]
[349914224,1737501038531,-250.0,0.00019977,2]
[349914225,1737501038541,-669.47883399,0.00019999,2]
[349914226,1737501038551,-350.0,0.0002,10]
[349914227,1737501038561,-4866.7,0.0002,2]
[349914228,1737501038571,-15843.79,0.0002,2]
[349914229,1737501038580,-417.756,0.0002,2]
[349914230,1737501038590,-158.49,0.00020054,30]
[349914231,1737501038600,-150.0,0.00020058,2]
[349914232,1737501038610,-334.0,0.00020483,2]
[349914233,1737501038620,-1845.00017967,0.00020787,2]
[349914234,1737501038631,-430.8522,0.00020799,2]
[349914235,1737501038642,-5000.0,0.000208,2]
[349914236,1737501038652,-915.8085,0.000208,2]
[349914237,1737501038663,-198.68421583,0.000208,2]
[349914238,1737501038672,-200.0,0.00020818,2]
[349914239,1737501038682,-1845.00017967,0.00020828,2]
[349914240,1737501038693,-3902.0,0.00020844,2]
[349914241,1737501038703,-150.0,0.00020844,2]
[349914242,1737501038713,-200.0,0.00020844,2]
[349914243,1737501038723,-1845.00017967,0.0002085,2]
[349914244,1737501038736,-200.0,0.00020869,2]
[349914245,1737501038748,-1845.00017967,0.00020872,2]
[349914246,1737501038758,-500.0,0.00020873,2]
[349914247,1737501038768,-500.0,0.00020873,2]
[349914249,1737501038779,-299.59940145,0.00020889,2]
[349914251,1737501038788,-365.37,0.00020889,2]
[349914253,1737501038798,-365.37,0.00020889,2]
[349914254,1737501038811,-365.37,0.00020889,2]
[349914255,1737501038821,-331.71532906,0.00020889,2]
[349914256,1737501038832,-33.65467094,0.00020889,2]
[349914257,1737501038842,-365.37,0.00020889,2]
[349914258,1737501038851,-365.37,0.00020889,2]
[349914259,1737501038862,-365.37,0.00020889,2]
[349914260,1737501038874,-365.37,0.00020889,2]
[349914261,1737501038885,-365.37,0.00020889,2]
[349914262,1737501038895,-365.37,0.0002089,2]
[349914263,1737501038905,-365.37,0.0002089,2]
[349914264,1737501038915,-365.37,0.0002089,2]
[349914265,1737501038926,-365.37,0.0002089,2]
[349914266,1737501038935,-365.37,0.0002089,2]
[349914267,1737501038945,-3000.0,0.00020893,2]
[349914268,1737501038956,-3053.46728777,0.00020893,2]
[349914269,1737501038967,-190.64621633,0.00020897,2]
[349914270,1737501038978,-3281.93391184,0.00020898,2]
[349914271,1737501038990,-9165.67651754,0.00020898,2]
[349914272,1737501039002,-17815.0,0.00020898,2]
[349914273,1737501039014,-1030.0,0.00020898,2]
[349914274,1737501039025,-547.4050979,0.00020898,2]
[349914275,1737501039036,-2080.69895767,0.00020898,2]
[349914276,1737501039049,-986.99155017,0.00020898,2]
[349914301,1737501040300,-426.040005,0.00020898,2]
[349914304,1737501040312,-3047.62992868,0.00020898,2]
[349914306,1737501040325,-980.784,0.00020898,2]
[349914311,1737501040362,-1712.24512789,0.00020898,2]
[349914314,1737501040376,-782.01804538,0.00020898,2]
[349914316,1737501040388,-345.4099159,0.00020898,2]
[349914318,1737501040399,-2521.20750633,0.00020898,2]
[349914325,1737501040459,-2489.6176992,0.00020898,2]
[349914327,1737501040471,-7123.6641588,0.00020898,2]
[349914329,1737501040484,-354.96074035,0.00020898,2]
[349914331,1737501040496,-261.971998,0.00020898,2]
[349914333,1737501040509,-7012.65436287,0.00020898,2]
[349914334,1737501040521,-4702.1225,0.00020898,2]
[349914335,1737501040554,-675.99532,0.00020898,2]
[349914336,1737501040567,-5755.96575606,0.00020898,2]
[349914338,1737501041212,-5008.03296378,0.00020898,2]
[349914365,1737501043368,-285.29918305,0.00020898,2]
[349914367,1737501043379,-601.00801366,0.00020898,2]
[349914369,1737501043390,-807.87780864,0.00020898,2]
[349914371,1737501043401,-482.15821,0.00020898,2]
[349914373,1737501043412,-558.900001,0.00020898,2]
[349914376,1737501043423,-1584.45,0.00020898,2]
[349914378,1737501043433,-3603.6,0.00020898,2]
[349914380,1737501043444,-12537.49999977,0.00020898,2]
[349914392,1737501043565,-3690.15440453,0.00020898,2]
[349914395,1737501043577,-23546.13089427,0.00020898,2]
[349914397,1737501043588,-5549.9,0.00020898,2]
[349914459,1737501046254,-568.85758884,0.00020798,2]
[349914460,1737501046265,-261.0699264,0.00020798,2]
[349914461,1737501046277,-324.14273072,0.00020798,2]
[349914462,1737501046288,-1583.48266468,0.00020798,2]
[349914463,1737501046297,-3724.51733532,0.00020898,2]
[349914464,1737501046312,-1025.58573186,0.00020898,2]
[349914465,1737501046323,-6275.63608125,0.00020898,2]
[349914466,1737501046358,-317.61014283,0.00020898,2]
[349914467,1737501046369,-981.09030433,0.00020898,2]
[349914468,1737501046381,-4697.49790201,0.00020898,2]
[349914472,1737501192927,2053.46882,0.0002234,120]
[349914473,1737501352730,712.0869,0.00024,120]
[349914477,1737501836659,161.12,0.00010137,2]
[349914480,1737501878541,150.0,0.00018,3]
[349914481,1737501908678,495450.62,0.00012,2]
[349914482,1737502028887,2278.10356506,0.00021,120]
[349914483,1737502029697,1737.65017646,0.00023,120]
[349914484,1737502068462,191.88563703,0.0002,120]
[349914485,1737502075309,1621.9962274,0.0001,2]
[349914486,1737502119777,258.59463487,0.00022,120]
[349914487,1737502119915,202.0,0.0002,120]
[349914488,1737502122549,800.0,0.00021,120]
[349914489,1737502123390,195.78,0.0002,120]
[349914490,1737502123446,419.90097052,0.00022,120]
[349914496,1737502174437,-378.18193318,0.00014,2]
[349914497,1737502174459,-152.73244313,0.00015,2]
[349914498,1737502174481,-2352.89849456,0.00015,2]
[349914507,1737502232669,-12180.65774804,0.00015,2]
[349914508,1737502232680,-6144.06801507,0.00015,2]
[349914509,1737502232691,-1183.89467393,0.00015,2]
[349914510,1737502232703,-2745.92312155,0.00015,2]
[349914511,1737502232712,-588.99220362,0.000152,2]
[349914512,1737502232723,-571.02215969,0.000152,2]
[349914513,1737502232733,-11.23444976,0.000153,2]
[349914514,1737502232746,-1506.40555024,0.000153,2]
[349914515,1737502232755,-1467.49809187,0.000154,2]
[349914516,1737502232765,-9252.71919217,0.00016,2]
[349914517,1737502232774,-2394.0,0.000171,2]
[349914518,1737502232783,-554.67015029,0.00017861,2]
[349914519,1737502232793,-626.02,0.00017961,2]
[349914520,1737502232804,-54476.0,0.000182,2]
[349914521,1737502232816,-5558.0,0.000186,3]
[349914522,1737502232827,-207.50999326,0.000189,2]
[349914523,1737502232838,-5558.0,0.00019,5]
[349914524,1737502232848,-160.09,0.00019175,30]
[349914525,1737502232857,-26215.0,0.00019582,2]
[349914526,1737502232867,-857.46,0.00019639,2]
[349914527,1737502232880,-173.02,0.00019647,2]
[349914528,1737502232892,-171.44,0.00019672,2]
[349914529,1737502232903,-2005.2464,0.00019772,2]
[349914530,1737502232915,-418.95,0.00019809,2]
[349914531,1737502232927,-12834.58,0.00019809,2]
[349914532,1737502232938,-513.22,0.0001982,2]
[349914533,1737502232949,-1000.0,0.00019884,2]
[349914534,1737502232960,-27604.15133015,0.000199,7]
[349914535,1737502232973,-6837.5,0.00019932,2]
[349914536,1737502232983,-174.98344199,0.00019999,2]
[349914537,1737502232994,-206.62462526,0.00019999,2]
[349914538,1737502233005,-500.0,0.00019999,2]
[349914539,1737502233016,-500.0,0.00019999,2]
[349914540,1737502233025,-502.58153223,0.00019999,2]
[349914541,1737502233038,-502.95193321,0.00019999,2]
[349914542,1737502233048,-500.0,0.00019999,2]
[349914543,1737502233058,-395.251,0.00019999,2]
[349914544,1737502233068,-500.0,0.00019999,2]
[349914545,1737502233080,-275.37591735,0.00019999,2]
[349914546,1737502233090,-500.0,0.00019999,2]
[349914547,1737502233099,-232.76074487,0.00019999,2]
[349914548,1737502233113,-150.0,0.0002,5]
[349914549,1737502233122,-38799.4425091,0.0002,2]
[349914550,1737502233132,-1475.5475798,0.0002,4]
[349914551,1737502233141,-626.02,0.00020225,2]
[349914552,1737502233153,-207.50999324,0.000204,2]
[349914553,1737502233163,-189.68,0.0002056,2]
[349914554,1737502233172,-3000.0,0.0002069,2]
[349914555,1737502233182,-2723.21853958,0.00020697,2]
[349914556,1737502233192,-3339.03541662,0.00020697,2]
[349914557,1737502233202,-303.87909844,0.00020698,2]
[349914558,1737502233211,-500.0,0.00020698,2]
[349914559,1737502233221,-55555.0,0.00020698,2]
[349914560,1737502233231,-8846.9369,0.00020699,2]
[349914561,1737502233240,-198.68421583,0.00020699,2]
[349914562,1737502233251,-5000.0,0.000207,2]
[349914563,1737502233261,-160.201,0.0002071,2]
[349914564,1737502233272,-500.0,0.00020773,2]
[349914565,1737502233282,-150.99545736,0.00020773,2]
[349914566,1737502233292,-161.04768242,0.00020773,2]
[349914567,1737502233302,-500.0,0.00020773,2]
[349914568,1737502233311,-152.04406892,0.00020773,2]
[349914569,1737502233320,-159.99546688,0.00020773,2]
[349914570,1737502233330,-156.04547928,0.00020773,2]
[349914571,1737502233341,-152.02069104,0.00020773,2]
[349914572,1737502233351,-210.65129002,0.00020783,2]
[349914573,1737502233360,-200.0,0.0002079,2]
[349914574,1737502233370,-500.0,0.00020796,2]
[349914575,1737502233380,-500.0,0.00020796,2]
[349914576,1737502233389,-1029.76,0.00020796,2]
[349914577,1737502233399,-500.0,0.00020796,2]
[349914578,1737502233409,-500.0,0.00020796,2]
[349914579,1737502233418,-609.28,0.00020796,2]
[349914580,1737502233428,-1882.24,0.00020796,2]
[349914581,1737502233437,-500.0,0.00020796,2]
[349914582,1737502233447,-538.46,0.00020796,2]
[349914583,1737502233456,-947.26,0.00020796,2]
[349914584,1737502233466,-500.0,0.00020796,2]
[349914585,1737502233475,-500.0,0.00020796,2]
[349914586,1737502233485,-504.38,0.00020796,2]
[349914587,1737502233495,-500.0,0.00020796,2]
[349914588,1737502233504,-173.8610118,0.00020796,2]
[349914589,1737502233513,-1715.47,0.00020796,2]
[349914590,1737502233522,-1158.37,0.00020796,2]
[349914591,1737502233531,-735.55,0.00020796,2]
[349914592,1737502233540,-500.0,0.00020796,2]
[349914593,1737502233549,-1166.54,0.00020796,2]
[349914594,1737502233558,-500.0,0.00020796,2]
[349914595,1737502233567,-500.0,0.00020796,2]
[349914596,1737502233577,-500.0,0.00020796,2]
[349914597,1737502233586,-500.0,0.00020796,2]
[349914598,1737502233595,-500.0,0.00020796,2]
[349914599,1737502233604,-1032.48,0.00020796,2]
[349914600,1737502233614,-500.0,0.00020796,2]
[349914601,1737502233623,-500.0,0.00020796,2]
[349914602,1737502233632,-500.0,0.00020796,2]
[349914603,1737502233642,-500.0,0.00020796,2]
[349914604,1737502233651,-723.78,0.00020796,2]
[349914605,1737502233660,-500.0,0.00020796,2]
[349914606,1737502233670,-500.0,0.00020796,2]
[349914607,1737502233679,-500.0,0.00020796,2]
[349914608,1737502233689,-500.0,0.00020796,2]
[349914609,1737502233698,-500.0,0.00020796,2]
[349914610,1737502233707,-500.0,0.00020796,2]
[349914611,1737502233717,-500.0,0.00020796,2]
[349914612,1737502233726,-500.0,0.00020796,2]
[349914613,1737502233735,-500.0,0.00020796,2]
[349914614,1737502233745,-500.0,0.00020796,2]
[349914615,1737502233755,-728.38,0.00020796,2]
[349914616,1737502233765,-500.0,0.00020796,2]
[349914617,1737502233775,-500.0,0.00020796,2]
[349914618,1737502233785,-500.0,0.00020796,2]
[349914619,1737502233795,-3801.65991438,0.00020797,2]
[349914620,1737502233804,-461.945,0.00020797,2]
[349914621,1737502233814,-179.195,0.00020797,2]
[349914622,1737502233823,-500.0,0.00020797,2]
[349914623,1737502233833,-597.273788,0.00020797,2]
[349914624,1737502233842,-500.0,0.00020797,2]
[349914625,1737502233852,-500.0,0.00020797,2]
[349914626,1737502233862,-854.52,0.00020797,2]
[349914627,1737502233871,-705.65,0.00020797,2]
[349914628,1737502233880,-622.82,0.00020797,2]
[349914629,1737502233889,-174.531727,0.00020797,2]
[349914630,1737502233899,-367.41983522,0.00020797,2]
[349914631,1737502233908,-1090.51,0.00020797,2]
[349914632,1737502233918,-500.0,0.00020797,2]
[349914633,1737502233927,-162.038696,0.00020797,2]
[349914634,1737502233936,-500.0,0.00020797,2]
[349914635,1737502233946,-520.82,0.00020797,2]
[349914636,1737502233955,-159.772266,0.00020797,2]
[349914637,1737502233965,-500.0,0.00020797,2]
[349914638,1737502233974,-740.94,0.00020797,2]
[349914639,1737502233983,-500.0,0.00020797,2]
[349914640,1737502233992,-651.31,0.00020797,2]
[349914641,1737502234003,-686.02,0.00020797,2]
[349914642,1737502234013,-812.39,0.00020797,2]
[349914643,1737502234022,-1686.24,0.00020797,2]
[349914644,1737502234031,-1108.46,0.00020797,2]
[349914645,1737502234041,-662.07,0.00020797,2]
[349914646,1737502234050,-500.0,0.00020797,2]